bitfinex-derivatives/quotes_ETHF0:USTF0_20250410
["timestamp","ask_amount","ask_price","bid_price","bid_amount"]
[1744268074897,5.84321909,1614.4,1614.3,4.66557]
[1744268075209,0.00921909,1614.4,1614.3,4.66557]
[1744268075812,1.24840909,1614.4,1614.3,4.66557]
[1744268075999,1.24840909,1614.4,1614.3,3.4263]
[1744268076495,4.45620909,1614.4,1614.3,1.7474]
[1744268076694,1.23927,1614.3,1614.2,30.996]
[1744268076899,10.67557,1614.3,1614.2,25.0]
[1744268077208,15.67557,1614.3,1614.2,25.0]
[1744268077899,10.67557,1614.3,1614.2,25.0]
[1744268078100,10.67557,1614.3,1614.2,26.7514]
[1744268078601,15.67557,1614.3,1614.2,25.0]
[1744268081010,21.50957,1614.3,1614.2,25.0]
[1744268081310,16.50957,1614.3,1614.2,25.0]
[1744268082804,21.50957,1614.3,1614.2,25.0]
[1744268083708,16.50957,1614.3,1614.2,25.0]
[1744268083910,21.31721661,1614.3,1614.2,25.0]
[1744268085106,21.31721661,1614.3,1614.2,57.0]
[1744268085708,21.31721661,1614.3,1614.2,58.7729]
[1744268087405,24.650841,1614.3,1614.2,58.7729]
[1744268089710,19.427541,1614.3,1614.2,60.5605]
[1744268092507,23.026741,1614.3,1614.2,60.5605]
[1744268092703,15.214541,1614.3,1614.2,60.5605]
[1744268092908,9.380541,1614.3,1614.2,60.5605]
[1744268093414,8.141271,1614.3,1614.2,61.79985]
[1744268093614,9.380541,1614.3,1614.2,61.79985]
[1744268093815,9.380541,1614.3,1614.2,60.5605]
[1744268094015,9.380541,1614.3,1614.2,101.3605]
[1744268094213,8.141271,1614.3,1614.2,102.59985]
[1744268095013,5.75656138,1614.3,1614.2,102.59985]
[1744268095414,6.99583138,1614.3,1614.2,102.59985]
[1744268095904,6.99583138,1614.3,1614.2,107.59985]
[1744268096510,5.75656138,1614.3,1614.2,107.59985]
[1744268096818,6.99583138,1614.3,1614.2,107.59985]
[1744268097818,5.75656138,1614.3,1614.2,102.59985]
[1744268098119,5.75656138,1614.3,1614.2,107.59985]
[1744268099420,4.82676029,1614.3,1614.2,112.59985]
[1744268100518,4.82676029,1614.3,1614.2,118.59585]
[1744268100814,0.60064029,1614.3,1614.2,118.59585]
[1744268101115,4.379589,1614.4,1614.3,1.23927]
[1744268101319,4.379589,1614.4,1614.3,10.50227]
[1744268101515,4.379589,1614.4,1614.3,15.99480068]
[1744268101916,4.379589,1614.4,1614.3,56.79480068]
[1744268102120,4.379589,1614.4,1614.3,61.79480068]
[1744268103718,1.23883,1614.9,1614.8,1.23889]
[1744268103913,9.1821,1615.1,1614.6,3.2078]
[1744268104108,1.23887,1614.9,1614.7,3.08592]
[1744268104316,1.23887,1614.9,1614.8,3.08589]
[1744268104825,1.23878,1615.0,1614.9,1.2388]
[1744268105024,1.23878,1615.0,1614.9,3.138]
[1744268105418,1.23878,1615.0,1614.9,1.8992]
[1744268105611,1.23912,1614.5,1614.4,3.2078]
[1744268105916,4.229,1614.6,1614.3,1.8078]
[1744268106123,1.23919,1614.4,1614.3,1.8078]
[1744268106323,1.23919,1614.4,1614.3,3.04707]
[1744268106519,1.23919,1614.4,1614.3,1.8078]
[1744268106915,3.06049,1614.4,1614.3,1.8078]
[1744268108116,1.8213,1614.4,1614.2,69.40868301]
[1744268108320,3.06056,1614.4,1614.2,71.28108301]
[1744268108616,1.23927,1614.3,1614.2,70.04177301]
[1744268108817,3.11477,1614.3,1614.2,70.04177301]
[1744268109018,3.11477,1614.3,1614.2,60.7716]
[1744268109238,1.8755,1614.3,1614.2,62.01095]
[1744268109643,3.11477,1614.3,1614.2,60.7716]
[1744268109845,1.8755,1614.3,1614.2,62.01095]
[1744268110147,1.8016,1614.5,1614.3,1.23921]
[1744268110445,1.23919,1614.4,1614.3,1.8724]
[1744268110632,1.23919,1614.4,1614.2,60.13852]
[1744268110836,3.00617,1614.3,1614.2,60.6678]
[1744268111137,1.7669,1614.3,1614.2,61.90715]
[1744268112750,3.00617,1614.3,1614.2,60.6678]
[1744268113044,1.7669,1614.3,1614.2,61.90715]
[1744268113436,1.7669,1614.3,1614.2,58.23935]
[1744268113642,1.7669,1614.3,1614.2,57.0]
[1744268113643,3.00617,1614.3,1614.2,57.0]
[1744268113847,3.00617,1614.3,1614.2,58.8781]
[1744268114141,1.7669,1614.3,1614.2,60.11745]
[1744268114345,1.7669,1614.3,1614.2,61.85845]
[1744268114740,3.00617,1614.3,1614.2,60.6191]
[1744268115845,3.00617,1614.3,1614.2,58.8781]
[1744268116045,3.00617,1614.3,1614.2,57.0]
[1744268116545,3.4965,1614.3,1614.2,58.23935]
[1744268118448,5.46824,1614.4,1614.2,57.0]
[1744268118648,7.21494,1614.4,1614.3,1.7712]
[1744268119248,1.23927,1614.3,1614.2,57.0]
[1744268119441,2.98597,1614.3,1614.2,57.0]
[1744268122546,6.19377,1614.3,1614.2,57.0]
[1744268125549,2.98597,1614.3,1614.2,57.0]
[1744268125756,6.19377,1614.3,1614.2,57.0]
[1744268126159,6.19377,1614.3,1614.2,58.783]
[1744268126550,6.19377,1614.3,1614.2,57.0]
[1744268126854,7.1235155,1614.3,1614.2,58.783]
[1744268127256,0.9297455,1614.3,1614.2,63.23015]
[1744268128452,0.9297455,1614.3,1614.2,60.02235]
[1744268129455,0.9297455,1614.3,1614.2,65.02235]
[1744268130659,17.5986317,1614.5,1614.2,65.02235]
[1744268130660,7.99226,1614.5,1614.4,1.23919]
[1744268130853,5.0094,1614.5,1614.4,1.23919]
[1744268131060,1.23909,1614.6,1614.5,1.23912]
[1744268131251,1.23909,1614.6,1614.5,3.03262]
[1744268131857,2.95801,1614.7,1614.6,1.23904]
[1744268132049,11.4198717,1614.8,1614.7,1.23896]
[1744268132257,9.6063717,1614.8,1614.7,8.92006]
[1744268132657,9.6063717,1614.8,1614.7,10.82636]
[1744268133062,9.6063717,1614.8,1614.7,15.82636]
[1744268133557,9.6063717,1614.8,1614.7,20.82636]
[1744268134061,4.0985717,1614.8,1614.7,20.82636]
[1744268134357,11.99513825,1614.9,1614.8,1.23889]
[1744268134556,10.62418825,1614.9,1614.8,14.65569]
[1744268134760,7.57220825,1614.9,1614.8,19.65569]
[1744268134964,6.00437825,1614.9,1614.8,60.45569]
[1744268135260,16.71583202,1615.4,1615.1,1.23866]
[1744268135261,9.64463589,1615.2,1615.1,1.23866]
[1744268135460,9.64463589,1615.2,1615.1,4.44646]
[1744268137366,9.64463589,1615.2,1615.1,11.10006]
[1744268138657,9.64463589,1615.2,1615.1,6.23866]
[1744268139066,10.88321589,1615.2,1615.1,6.7168]
[1744268139265,14.46011589,1615.2,1615.1,5.0]
[1744268139864,1.23866,1615.1,1615.0,0.00928706]
[1744268140163,4.80176,1615.1,1615.0,0.00928706]
[1744268145857,3.5631,1615.1,1615.0,1.24801706]
[1744268147372,3.5631,1615.1,1615.0,3.06271706]
[1744268147569,1.8141,1615.1,1615.0,3.06271706]
[1744268148572,1.7628,1615.2,1615.1,1.23866]
[1744268148773,3.5456,1615.2,1615.1,6.18976]
[1744268149776,1.7451,1615.4,1615.3,1.2385]
[1744268149974,4.7409,1615.4,1615.2,2.98182]
[1744268150168,1.2385,1615.3,1615.2,2.98182]
[1744268150476,4.74088,1615.4,1615.3,1.2385]
[1744268151376,6.55818,1615.4,1615.3,1.2385]
[1744268151679,1.2385,1615.3,1615.2,2.98182]
[1744268151975,1.8173,1615.3,1615.2,1.23852]
[1744268152367,1.8173,1615.3,1615.2,2.89862]
[1744268152768,1.23824,1615.7,1615.6,1.23825]
[1744268153069,3.06364,1615.7,1615.6,1.23827]
[1744268153273,1.23827,1615.6,1615.5,1.23828]
[1744268153978,3.09588,1615.5,1615.2,5.0]
[1744268154179,1.23866,1615.1,1615.0,0.00928706]
[1744268155186,1.23866,1615.1,1615.0,5.00928706]
[1744268155478,4.66806,1615.1,1615.0,5.00928706]
[1744268155868,4.66806,1615.1,1615.0,6.24801706]
[1744268156072,3.4294,1615.1,1615.0,6.24801706]
[1744268157083,4.66806,1615.1,1615.0,6.24801706]
[1744268157383,4.66806,1615.1,1615.0,5.00928706]
[1744268158079,4.66806,1615.1,1615.0,37.00928706]
[1744268158080,8.87906,1615.1,1615.0,37.00928706]
[1744268158571,12.08686,1615.1,1615.0,32.00928706]
[1744268165580,8.87906,1615.1,1615.0,32.00928706]
[1744268166186,8.87906,1615.1,1615.0,33.24801706]
[1744268166686,1.7436,1615.1,1615.0,33.24801706]
[1744268166887,4.61726,1615.1,1615.0,34.84761706]
[1744268167087,3.3786,1615.1,1615.0,34.84761706]
[1744268167274,1.635,1615.1,1615.0,34.84761706]
[1744268168185,2.87366,1615.1,1615.0,32.00928706]
[1744268168677,2.87366,1615.1,1615.0,33.24801706]
[1744268168873,2.87366,1615.1,1615.0,34.93171706]
[1744268169279,1.23852,1615.3,1615.2,1.23852]
[1744268169479,1.23851,1615.3,1615.2,1.23853]
[1744268169890,2.96801,1615.3,1615.2,2.92223]
[1744268170491,2.92799,1615.4,1615.3,1.2385]
[1744268170686,7.18683654,1615.7,1615.3,13.98373]
[1744268170889,7.18683654,1615.7,1615.6,1.23827]
[1744268171298,7.18683654,1615.7,1615.6,43.72197]
[1744268172696,8.42503654,1615.7,1615.6,43.72197]
[1744268172992,7.18683654,1615.7,1615.6,43.72197]
[1744268173583,8.42503654,1615.7,1615.6,42.4837]
[1744268173789,7.18683654,1615.7,1615.6,47.03827]
[1744268173981,7.18683654,1615.7,1615.6,48.72097]
[1744268174188,8.42503654,1615.7,1615.6,48.72097]
[1744268174400,7.18683654,1615.7,1615.6,54.71697]
[1744268174799,8.42503654,1615.7,1615.6,48.4787]
[1744268175094,10.18513654,1615.7,1615.6,48.4787]
[1744268175288,2.9983,1615.7,1615.6,48.4787]
[1744268175487,4.6112,1615.7,1615.6,48.4787]
[1744268175795,4.6112,1615.7,1615.6,49.71697]
[1744268176396,4.6112,1615.7,1615.6,48.4787]
[1744268176788,4.6112,1615.7,1615.6,46.796]
[1744268177997,4.6112,1615.7,1615.6,40.8]
[1744268178795,4.6112,1615.7,1615.4,8.93937]
[1744268178796,1.23843,1615.4,1615.3,9.2038]
[1744268179101,1.23841,1615.5,1615.3,7.23448]
[1744268179398,3.4116,1615.5,1615.4,42.03843]
[1744268179701,4.64995,1615.5,1615.4,42.4843]
[1744268180501,4.64995,1615.5,1615.4,40.8]
[1744268180993,1.23843,1615.4,1615.3,5.996]
[1744268181189,4.56523,1615.4,1615.3,5.996]
[1744268181392,4.56523,1615.4,1615.3,46.796]
[1744268183900,3.3268,1615.4,1615.3,40.8]
[1744268185095,3.3268,1615.4,1615.3,42.0385]
[1744268185300,3.3268,1615.4,1615.3,40.8]
[1744268185797,3.3268,1615.4,1615.3,42.0385]
[1744268185997,4.56523,1615.4,1615.3,40.8]
[1744268186206,5.8819,1615.5,1615.4,1.23843]
[1744268186401,1.6689,1615.5,1615.4,2.94653]
[1744268186607,1.23843,1615.4,1615.3,40.8]
[1744268186795,3.405,1615.5,1615.3,42.0385]
[1744268186998,1.6135,1615.4,1615.3,42.0385]
[1744268187196,1.6135,1615.4,1615.3,43.7429]
[1744268187396,1.6689,1615.5,1615.4,1.23843]
[1744268187706,10.56393654,1615.6,1615.5,1.23835]
[1744268187913,8.80033654,1615.6,1615.5,1.23835]
[1744268188111,10.49093654,1615.6,1615.5,1.23835]
[1744268189814,8.80033654,1615.6,1615.5,1.23835]
[1744268190307,8.80033654,1615.6,1615.5,2.84315]
[1744268190713,8.80033654,1615.6,1615.5,6.05095]
[1744268196415,1.6135,1615.6,1615.5,6.05095]
[1744268196709,7.18683654,1616.0,1615.7,1.2382]
[1744268196914,8.80623654,1616.0,1615.9,1.23804]
[1744268198217,12.02763654,1616.0,1615.9,1.23804]
[1744268200215,12.02763654,1616.0,1615.9,4.44584]
[1744268200420,17.02763654,1616.0,1615.7,1.23815]
[1744268200615,1.23814,1615.8,1615.7,1.23815]
[1744268200811,1.23833,1615.6,1615.4,7.23436]
[1744268201121,3.3867,1615.5,1615.4,1.23836]
[1744268201316,3.3867,1615.5,1615.4,4.44616]
[1744268201521,3.3867,1615.5,1615.4,6.16996]
[1744268203423,5.0048,1615.5,1615.4,6.16996]
[1744268204323,5.0048,1615.5,1615.4,12.16596]
[1744268204727,1.23809,1615.9,1615.5,3.09588]
[1744268204923,5.0591,1615.8,1615.7,1.2382]
[1744268205427,6.29722,1615.8,1615.7,1.2382]
[1744268205821,5.0591,1615.8,1615.7,1.2382]
[1744268206626,5.0591,1615.8,1615.7,2.9192]
[1744268208125,5.0591,1615.8,1615.7,7.9192]
[1744268209326,3.368,1615.8,1615.7,7.9192]
[1744268209725,3.368,1615.8,1615.7,13.9152]
[1744268210425,7.18683654,1615.9,1615.8,1.23812]
[1744268210623,3.21408654,1616.2,1616.1,1.23789]
[1744268210824,3.21408654,1616.2,1616.1,4.44569]
[1744268211034,6.59678654,1616.2,1616.1,4.44569]
[1744268211729,7.83459654,1616.2,1616.1,5.0]
[1744268212132,7.83459654,1616.2,1616.1,6.23789]
[1744268212430,6.59678654,1616.2,1616.1,6.23789]
[1744268212929,7.83459654,1616.2,1616.1,5.0]
[1744268213125,6.59678654,1616.2,1616.1,1.23789]
[1744268213533,7.83459654,1616.2,1616.1,1.23789]
[1744268213933,7.83459654,1616.2,1616.0,0.00928706]
[1744268213934,1.23789,1616.1,1616.0,1.24719706]
[1744268214233,2.83999,1616.1,1616.0,0.00928706]
[1744268215234,2.83999,1616.1,1616.0,1.24725706]
[1744268215436,1.6021,1616.1,1616.0,1.24725706]
[1744268216038,2.83999,1616.1,1616.0,1.24725706]
[1744268216335,1.6021,1616.1,1616.0,1.24725706]
[1744268216537,9.59347909,1616.6,1616.5,1.23758]
[1744268216736,15.21428694,1616.8,1616.7,1.23743]
[1744268216939,15.21428694,1616.8,1616.6,1.23746]
[1744268217130,15.21428694,1616.8,1616.7,42.03743]
[1744268218231,13.58618694,1616.8,1616.7,42.03743]
[1744268218437,11.99048694,1616.8,1616.7,42.03743]
[1744268218633,11.99048694,1616.8,1616.7,43.70513]
[1744268219542,11.99048694,1616.8,1616.7,53.70513]
[1744268219740,11.99048694,1616.8,1616.7,47.03743]
[1744268220441,13.61578694,1616.8,1616.7,47.03743]
[1744268221440,14.85313694,1616.8,1616.7,47.03743]
[1744268221648,13.61578694,1616.8,1616.7,47.03743]
[1744268221838,14.85313694,1616.8,1616.7,40.8]
[1744268222341,13.61578694,1616.8,1616.7,42.03743]
[1744268222543,1.6253,1616.8,1616.7,42.03743]
[1744268224744,1.7268,1616.9,1616.8,1.23735]
[1744268224932,1.7268,1616.9,1616.8,6.19805]
[1744268225242,3.4057,1616.9,1616.8,6.23735]
[1744268225444,4.64298,1616.9,1616.8,5.0]
[1744268225634,3.4057,1616.9,1616.8,6.23735]
[1744268225938,4.64298,1616.9,1616.8,5.0]
[1744268226139,3.4057,1616.9,1616.8,6.23735]
[1744268226345,4.64298,1616.9,1616.8,6.23735]
[1744268226643,4.64298,1616.9,1616.8,1.23735]
[1744268226942,1.23735,1616.8,1616.7,40.8]
[1744268227142,2.97745,1616.8,1616.7,40.8]
[1744268227945,2.97745,1616.8,1616.7,42.03743]
[1744268228442,2.97745,1616.8,1616.7,40.8]
[1744268229540,1.7401,1616.8,1616.7,42.03743]
[1744268229738,2.97745,1616.8,1616.7,42.03743]
[1744268230147,1.7401,1616.8,1616.7,42.03743]
[1744268230348,2.97745,1616.8,1616.7,42.03743]
[1744268231247,1.7401,1616.8,1616.7,42.03743]
[1744268231747,2.97745,1616.8,1616.7,42.03743]
[1744268232051,2.97745,1616.8,1616.7,40.8]
[1744268232546,7.18345,1616.8,1616.7,40.8]
[1744268233336,2.97745,1616.8,1616.7,40.8]
[1744268233550,1.7401,1616.8,1616.7,42.03743]
[1744268233943,2.97745,1616.8,1616.7,40.8]
[1744268234451,2.97745,1616.8,1616.7,42.03743]
[1744268235353,2.97745,1616.8,1616.7,40.8]
[1744268238845,1.23751,1616.6,1616.5,3.2078]
[1744268239050,10.78899,1616.7,1616.3,4.44548]
[1744268239249,1.7346,1616.6,1616.3,3.2078]
[1744268239446,1.23758,1616.5,1616.4,43.7691]
[1744268239646,4.57627,1616.6,1616.5,1.23758]
[1744268239842,3.3387,1616.6,1616.5,2.96908]
[1744268240038,4.57621,1616.6,1616.5,2.96908]
[1744268240246,4.57621,1616.6,1616.5,1.7315]
[1744268241455,4.57621,1616.6,1616.5,2.96908]
[1744268241951,1.7547,1616.7,1616.6,1.23751]
[1744268242253,1.23738,1616.8,1616.7,1.23741]
[1744268242555,1.23733,1616.9,1616.8,1.23735]
[1744268242749,1.23733,1616.9,1616.8,2.82775]
[1744268243267,10.50661,1617.2,1616.8,2.82775]
[1744268243553,1.23728,1616.9,1616.8,1.23735]
[1744268243754,1.23728,1616.9,1616.8,1.24663706]
[1744268244769,1.23725,1617.0,1616.8,1.24663706]
[1744268245271,1.23728,1616.9,1616.8,1.24663706]
[1744268246368,1.23728,1616.9,1616.8,0.00928706]
[1744268246968,1.23728,1616.9,1616.8,1.24663706]
[1744268247764,1.627,1617.0,1616.9,1.23728]
[1744268247970,3.3403,1617.1,1616.9,4.44508]
[1744268248166,1.2372,1617.0,1616.9,4.44508]
[1744268248670,6.21228,1617.1,1616.9,4.44508]
[1744268248865,4.9751,1617.1,1616.9,4.44508]
[1744268249064,6.21227,1617.1,1616.9,4.44508]
[1744268249266,4.9751,1617.1,1616.9,4.44508]
[1744268250074,1.2372,1617.0,1616.9,4.44508]
[1744268250365,1.2372,1617.0,1616.9,3.2078]
[1744268250672,1.23728,1616.9,1616.8,0.00928706]
[1744268250972,5.44328,1616.9,1616.8,0.00928706]
[1744268251165,12.08138,1616.9,1616.8,0.00928706]
[1744268251472,2.87538,1616.9,1616.8,0.00928706]
[1744268253968,7.87538,1616.9,1616.8,0.00928706]
[1744268254473,11.08318,1616.9,1616.8,0.00928706]
[1744268256177,1.23751,1616.6,1616.5,3.2078]
[1744268256375,1.23766,1616.4,1616.3,4.9684]
[1744268256570,1.23766,1616.4,1616.3,3.2078]
[1744268257066,2.91186,1616.4,1616.3,3.2078]
[1744268259174,1.68208706,1616.5,1616.3,3.2078]
[1744268259371,0.00928706,1616.5,1616.4,1.23766]
[1744268259573,0.00928706,1616.5,1616.4,4.65546]
[1744268259768,0.00928706,1616.5,1616.4,9.65546]
[1744268260078,0.00928706,1616.5,1616.4,15.65146]
[1744268261370,0.00928706,1616.5,1616.4,61.45146]
[1744268262579,7.06e-06,1616.5,1616.4,61.45146]
[1744268263471,10.84576144,1617.1,1617.0,1.2372]
[1744268263676,10.84576144,1617.1,1617.0,4.445]
[1744268263876,10.84576144,1617.1,1617.0,3.2078]
[1744268264076,12.50226144,1617.1,1617.0,3.2078]
[1744268264280,12.50226144,1617.1,1617.0,4.445]
[1744268265979,12.50226144,1617.1,1617.0,3.2078]
[1744268266281,1.2372,1617.0,1616.9,1.6834]
[1744268266481,4.611,1617.0,1616.9,1.6834]
[1744268266872,4.611,1617.0,1616.9,43.72068]
[1744268267179,3.3738,1617.0,1616.9,43.72068]
[1744268267573,2.89401,1617.2,1617.0,1.23714]
[1744268267775,4.61071,1617.2,1617.0,6.12834]
[1744268268569,1.23712,1617.1,1617.0,6.12834]
[1744268268975,2.95382,1617.1,1617.0,6.12834]
[1744268269474,1.7167,1617.1,1617.0,6.12834]
[1744268270180,1.2372,1617.0,1616.9,40.8]
[1744268270379,1.2372,1617.0,1616.9,42.03728]
[1744268270782,1.2372,1617.0,1616.9,40.8]
[1744268270988,1.23728,1616.9,1616.8,9.2038]
[1744268271280,4.59208,1616.9,1616.8,9.2038]
[1744268271784,4.59208,1616.9,1616.8,3.2078]
[1744268271984,6.27248,1616.9,1616.8,3.2078]
[1744268274184,7.20071901,1616.9,1616.8,3.2078]
[1744268275783,1.23743,1616.7,1616.6,45.7054]
[1744268276786,1.23743,1616.7,1616.6,46.94291]
[1744268276990,2.86435,1616.8,1616.7,1.23743]
[1744268277185,5.52033901,1616.9,1616.8,1.23735]
[1744268277490,1.23735,1616.8,1616.6,45.24527]
[1744268277691,1.23743,1616.7,1616.6,46.93687]
[1744268277900,1.23743,1616.7,1616.6,46.93691]
[1744268278090,1.23743,1616.7,1616.6,45.6994]
[1744268278291,1.23743,1616.7,1616.6,3.2078]
[1744268279087,1.23758,1616.5,1616.4,10.8638]
[1744268279787,1.23758,1616.5,1616.4,51.6638]
[1744268279993,1.23758,1616.5,1616.4,52.90146]
[1744268280790,1.23758,1616.5,1616.4,46.90546]
[1744268280994,4.206,1616.7,1616.4,46.90546]
[1744268281193,1.23755,1616.6,1616.5,2.89758]
[1744268282487,1.23755,1616.6,1616.5,1.66]
[1744268282692,2.86248,1616.7,1616.5,2.89752]
[1744268282995,1.23751,1616.6,1616.5,4.63282]
[1744268283187,1.23751,1616.6,1616.5,7.84062]
[1744268283992,1.23751,1616.6,1616.5,3.2078]
[1744268284288,1.23766,1616.4,1616.3,6.16047]
[1744268284493,1.23766,1616.4,1616.3,45.24547]
[1744268284690,1.23766,1616.4,1616.3,44.0078]
[1744268285696,1.23766,1616.4,1616.3,45.24554]
[1744268285885,1.23766,1616.4,1616.3,44.0078]
[1744268286081,2.99675,1616.5,1616.3,45.24547]
[1744268286390,1.23766,1616.4,1616.3,45.24547]
[1744268286588,1.23766,1616.4,1616.3,44.0078]
[1744268287995,2.99674,1616.5,1616.3,45.24554]
[1744268288295,1.23765,1616.5,1616.3,45.24548]
[1744268288491,1.23766,1616.4,1616.3,45.24548]
[1744268288690,1.23763,1616.5,1616.4,1.23765]
[1744268288884,1.6754,1616.6,1616.3,45.24548]
[1744268289090,1.23765,1616.5,1616.3,42.03768]
[1744268289294,1.23765,1616.5,1616.4,4.44546]
[1744268289692,1.23765,1616.5,1616.4,3.2078]
[1744268290395,1.23765,1616.5,1616.4,4.44546]
[1744268290599,1.23756,1616.6,1616.5,1.23758]
[1744268290793,3.4108,1616.7,1616.4,6.2365]
[1744268290994,4.64823,1616.7,1616.6,3.2078]
[1744268291598,1.23758,1616.5,1616.4,44.0078]
[1744268291792,3.02337,1616.6,1616.4,44.0078]
[1744268292100,1.23758,1616.5,1616.4,45.24543]
[1744268292297,3.02335,1616.6,1616.5,1.23758]
[1744268292500,1.23755,1616.6,1616.5,1.23758]
[1744268292901,1.23755,1616.6,1616.4,45.24539]
[1744268293195,1.23755,1616.6,1616.4,44.0078]
[1744268293397,1.23751,1616.6,1616.4,45.2454]
[1744268293590,1.23758,1616.5,1616.4,45.2454]
[1744268293787,1.23758,1616.5,1616.4,44.0078]
[1744268293991,1.23758,1616.5,1616.4,45.24546]
[1744268294498,1.23758,1616.5,1616.4,44.0078]
[1744268295297,1.23758,1616.5,1616.4,3.2078]
[1744268295598,4.66058,1616.5,1616.4,3.2078]
[1744268296192,4.66058,1616.5,1616.4,4.9216]
[1744268296400,4.66058,1616.5,1616.4,3.2078]
[1744268297503,1.23774,1616.3,1616.2,5.00748706]
[1744268298601,2.93294,1616.3,1616.2,5.00748706]
[1744268301204,2.93294,1616.3,1616.2,6.24529706]
[1744268301505,2.93294,1616.3,1616.2,5.00748706]
[1744268303897,2.93294,1616.3,1616.2,6.24529706]
[1744268304094,2.93294,1616.3,1616.2,5.00748706]
[1744268305397,2.93294,1616.3,1616.2,6.24529706]
[1744268305597,2.93294,1616.3,1616.2,5.00748706]
[1744268306302,2.93294,1616.3,1616.2,1.79968706]
[1744268306707,2.93294,1616.3,1616.2,6.24529706]
[1744268308106,1.6952,1616.3,1616.2,6.24529706]
[1744268308804,3.01615,1616.5,1616.2,5.00748706]
[1744268309006,3.01615,1616.5,1616.3,6.26616]
[1744268309310,3.01615,1616.5,1616.4,2.89866]
[1744268310706,4.75875,1616.5,1616.4,1.661]
[1744268311301,4.75875,1616.5,1616.4,2.89866]
[1744268311501,4.75875,1616.5,1616.4,6.10646]
[1744268312011,4.75875,1616.5,1616.4,4.8688]
[1744268313206,7.14436,1616.6,1616.5,1.23758]
[1744268313410,4.207,1616.6,1616.5,2.97948]
[1744268313611,9.60858144,1616.7,1616.6,1.23751]
[1744268313815,12.55806144,1616.8,1616.6,4.9497]
[1744268314111,14.23136144,1616.8,1616.7,1.23743]
[1744268314310,14.23136144,1616.8,1616.7,2.97933]
[1744268314512,14.23136144,1616.8,1616.7,1.7419]
[1744268314811,14.23136144,1616.8,1616.7,2.97933]
[1744268315112,11.32068144,1616.8,1616.7,2.97933]
[1744268315714,12.55803144,1616.8,1616.7,4.73603]
[1744268316613,12.55803144,1616.8,1616.7,3.4986]
[1744268316913,14.30473144,1616.8,1616.7,1.7419]
[1744268318116,14.30473144,1616.8,1616.7,2.97933]
[1744268318513,13.06738144,1616.8,1616.7,2.97933]
[1744268318714,11.32068144,1616.8,1616.7,2.97933]
[1744268318906,12.55803144,1616.8,1616.7,2.97933]
[1744268319212,1.7121,1616.8,1616.7,2.97933]
[1744268319712,2.94945,1616.8,1616.7,2.97933]
[1744268321514,1.6445,1617.0,1616.7,1.7419]
[1744268321715,8.0891,1617.0,1616.6,4.44526]
[1744268322015,4.206,1616.9,1616.6,6.11396]
[1744268322215,1.23743,1616.7,1616.6,4.8765]
[1744268322407,1.23743,1616.7,1616.6,6.11401]
[1744268322607,1.23758,1616.5,1616.4,9.2038]
[1744268323309,2.90828,1616.5,1616.4,9.2038]
[1744268323610,2.90828,1616.5,1616.4,5.996]
[1744268324617,1.23766,1616.4,1616.3,1.6687]
[1744268324817,2.86726,1616.4,1616.3,1.6687]
[1744268326308,8.98059,1616.6,1616.3,1.6687]
[1744268326515,4.206,1616.4,1616.3,1.6687]
[1744268326713,5.44366,1616.4,1616.3,1.6687]
[1744268328819,1.23766,1616.4,1616.3,1.6687]
[1744268329017,1.23764,1616.5,1616.3,2.90644]
[1744268329221,1.23764,1616.5,1616.4,8.4091]
[1744268329920,1.23758,1616.5,1616.4,9.64676]
[1744268330616,1.23758,1616.5,1616.4,8.4091]
[1744268332222,1.23758,1616.5,1616.4,6.6243]
[1744268332620,2.92998,1616.5,1616.4,6.6243]
[1744268333518,2.92998,1616.5,1616.4,4.9829]
[1744268333724,1.23758,1616.5,1616.4,4.9829]
[1744268337625,2.95648,1616.5,1616.4,4.9829]
[1744268338529,1.23758,1616.5,1616.4,4.9829]
[1744268339523,2.89498,1616.5,1616.4,4.9829]
[1744268341530,10.13685724,1616.5,1616.4,4.9829]
[1744268341832,8.47945724,1616.5,1616.4,4.9829]
[1744268344035,10.26995724,1616.5,1616.4,3.2078]
[1744268344227,8.47945724,1616.5,1616.4,3.2078]
[1744268344628,8.47945724,1616.5,1616.4,4.8545]
[1744268344829,8.47945724,1616.5,1616.4,6.09216]
[1744268345331,7.24187724,1616.5,1616.4,6.09216]
[1744268345630,7.24187724,1616.5,1616.4,11.09216]
[1744268346833,9.60858144,1616.6,1616.4,4.8545]
[1744268347026,9.60858144,1616.6,1616.5,4.71448]
[1744268347233,9.60858144,1616.6,1616.5,6.48088]
[1744268347430,10.84609144,1616.6,1616.5,5.2433]
[1744268347632,10.84609144,1616.6,1616.5,6.48088]
[1744268347838,9.60858144,1616.6,1616.5,11.48088]
[1744268348228,9.60858144,1616.6,1616.5,6.48088]
[1744268349040,10.84609144,1616.6,1616.5,6.48088]
[1744268349339,9.60858144,1616.6,1616.5,6.48088]
[1744268351041,2.90606431,1616.8,1616.7,1.23743]
[1744268351240,2.90606431,1616.8,1616.7,4.44523]
[1744268351441,1.66865431,1616.8,1616.7,4.44523]
[1744268351944,1.66865431,1616.8,1616.7,10.44123]
[1744268353035,1.66865431,1616.8,1616.7,20.44123]
[1744268353539,12.67292853,1617.2,1617.0,1.23715]
[1744268353737,12.67292853,1617.2,1617.1,6.5286]
[1744268353938,13.90997853,1617.2,1617.1,6.5286]
[1744268354138,13.90997853,1617.2,1617.1,7.76572]
[1744268354341,13.90997853,1617.2,1617.1,6.5286]
[1744268354938,2.95445,1617.2,1617.1,6.5286]
[1744268355441,15.59364408,1617.3,1617.2,1.23705]
[1744268355633,15.59364408,1617.3,1617.2,2.99955]
[1744268356538,13.86104408,1617.3,1617.2,2.99955]